Cogmind - Beta 13 @@@ ROGUE MODE // 2024.03.30 @ 23:46:13 Player: Snips Result: Destroyed by G-47 Trooper with Particle Gun Performance ------------- Evolutions (2) 1000 Regions Visited (3) 600 Robots Destroyed (8) 40 Value Destroyed (175) 175 Prototype IDs (0) 0 Alien Tech Used (0) 0 Bonus (0) 0 TOTAL SCORE: 1815 Bonus ------- None Cogmind --------- Core Integrity 0/550 Matter 391/500 Energy 98/100 System Corruption 0% Temperature Cool (36) Movement Core (100) Ox1 Location -8/Materials Parts ------- > --- POWER (1) -------- (None) > --- PROPULSION (2) --- (None) > --- UTILITY (6) ------ High-capacity Matter Pod > --- WEAPON (2) ------- (None) > --- INVENTORY (5) ---- Ion Engine Makeshift Power Source Assault Rifle Makeshift Axe Peak State ------------ > --- POWER ------------ Light Nuclear Core > --- PROPULSION ------- Makeshift Leg > --- UTILITY ---------- Small Matter Pod High-capacity Matter Pod Improved Terrain Scanner > --- WEAPON ----------- Enhanced Flamer Makeshift Hammer > --- INVENTORY -------- Ion Engine Light Ion Engine Makeshift Power Source Assault Rifle Makeshift Axe [Rating: 20] Favorites ----------- Power Light Ion Engine Engine Light Ion Engine Power Core Light Nuclear Core Propulsion Wheel Leg Makeshift Leg Wheel Wheel Utility Small Matter Pod Device Improved Terrain Scanner Storage Small Matter Pod Weapon Makeshift Hammer Ballistic Gun Assault Rifle Special Weapon Mining Laser Impact Weapon Makeshift Hammer Build | -11 -10 -10 -8 ------- Run | Yrd Mat Sub Mat Slots Evolved 4 | . . . 4 Power . | . . . . Propulsion . | . . . . Utility 4 | . . . 4 Weapon . | . . . . Parts Attached 13 | 7 . 3 3 Power 3 | 1 . . 2 Engine 2 | 1 . . 1 Core 1 | . . . 1 Reactor . | . . . . Propulsion 3 | 2 . 1 . Treads . | . . . . Leg 1 | . . 1 . Wheel 2 | 2 . . . Hover . | . . . . Flight . | . . . . Utility 3 | 2 . . 1 Device 1 | 1 . . . Storage 2 | 1 . . 1 Processor . | . . . . Hackware . | . . . . Protection . | . . . . Artifact . | . . . . Weapon 4 | 2 . 2 . Energy Gun . | . . . . Energy Cannon . | . . . . Ballistic Gun 1 | 1 . . . Ballistic Cannon . | . . . . Launcher . | . . . . Special Weapon 2 | 1 . 1 . Impact Weapon 1 | . . 1 . Slashing Weapon . | . . . . Piercing Weapon . | . . . . Special Melee Weapon . | . . . . Unidentified Prototypes . | . . . . Parts Lost 8 | . . 1 7 Power 2 | . . . 2 Propulsion 2 | . . 1 1 Utility 2 | . . . 2 Weapon 2 | . . . 2 Highest Loss Streak 7 | . . 1 7 To Critical Strikes . | . . . . Average Slot Usage (%) 81 | . 100 87 48 Engine 12 | . 14 14 3 Leg 8 | . . 10 4 Wheel 6 | . 28 5 . Device 12 | . 14 14 6 Storage 14 | . 14 14 14 Ballistic Gun 2 | . 14 1 . Special Weapon 12 | . 14 14 6 Impact Weapon 10 | . . 12 9 Naked Turns . | . . . . Heaviest Build 16 | 8 8 10 16 Greatest Support 20 | 20 20 20 20 Greatest Overweight (x) 4 | . . . 4 Average Overweight (x) . | . . . . Largest Inventory Capacity 5 | 5 5 5 5 Average Capacity 5 | 5 5 5 5 Most Carried 5 | 3 3 5 5 Average Carried 4 | 1 3 4 4 Final Capacity 5 | 5 5 5 5 Final Carried 5 | 3 3 5 4 Class Distribution -------------------- 60% | Scavenger-Mutant 39% | Mutant Dominant Class ---------------- Mutant | -10/Materials Scavenger-Mutant | -10/Subcaves Mutant | -8/Materials Resources | -11 -10 -10 -8 ----------- Run | Yrd Mat Sub Mat Matter Collected 431 | 334 31 20 46 Remotely . | . . . . Salvage Created 193 | 91 . 56 46 Parts 18 | 14 . 4 . Haulers Intercepted . | . . . . Recyclers Shooed . | . . . . Parts Field Recycled . | . . . . Retrieved Matter . | . . . . Parts Self-Destructed 5 | . . 5 . Prevented . | . . . . Kills | -11 -10 -10 -8 ------- Run | Yrd Mat Sub Mat Combat Hostiles Destroyed 4 | 1 . 2 1 Melee 1 | . . 1 . Guns 1 | 1 . . . Classes Destroyed 5 | 3 . 1 1 Worker 1 | 1 . . . Tunneler 3 | 3 . . . Grunt 2 | 1 . 1 . Sentry 1 | . . . 1 Subdweller 1 | . . 1 . Best Kill Streak 3 | 3 . 1 1 Combat Bots Only 1 | 1 . 1 1 Max Kills in Single Turn 1 | 1 . 1 1 Gunslinging . | . . . . Exploded . | . . . . Melee 1 | . . 1 . Uniques/NPCs Destroyed . | . . . . Combat | -11 -10 -10 -8 -------- Run | Yrd Mat Sub Mat Hostile Shots Fired 102 | 12 . 16 74 Missed 29 | 5 . 8 16 Damage Taken 1179 | 78 . 178 923 Core 682 | . . 126 556 Absorbed by Shields . | . . . . Core Remaining (%) 74 | 100 . 49 . Volleys Fired 37 | 16 12 5 4 Largest 1 | 1 1 1 1 Hottest 100 | 100 100 100 80 Shots Fired 37 | 16 12 5 4 Gun 15 | 15 . . . Cannon . | . . . . Launcher . | . . . . Special 22 | 1 12 5 4 Kinetic 15 | 15 . . . Thermal 22 | 1 12 5 4 Explosive . | . . . . Electromagnetic . | . . . . Robot Hit Streak 6 | 5 . . 6 Robot Miss Streak 2 | 2 . . . Penetration Max . | . . . . Secondary Targets . | . . . . Shots Hit Robots 24 | 10 . 5 9 Core Hits 7 | 6 . 1 . Critical Kills . | . . . . Critical Parts Destroyed 2 | . . 1 1 Critical Strikes 4 | . . 2 2 Smash 4 | . . 2 2 Melee Attacks 47 | . . 23 24 Impact 47 | . . 23 24 Slashing . | . . . . Piercing . | . . . . Sneak Attacks . | . . . . Combat Hostiles . | . . . . Follow-up Attacks . | . . . . Damage Inflicted 660 | 127 . 202 331 Guns 127 | 127 . . . Cannons . | . . . . Explosions . | . . . . Melee 521 | . . 202 319 Ramming . | . . . . Kinetic 127 | 127 . . . Thermal 12 | . . . 12 Explosive . | . . . . Electromagnetic . | . . . . Impact 521 | . . 202 319 Slashing . | . . . . Piercing . | . . . . Highest Corruption . | . . . . Average Corruption . | . . . . Corruption Purged . | . . . . Corruption Blocked . | . . . . Overload Shots . | . . . . Overflow Damage 106 | . . 44 62 Projectiles . | . . . . Explosions . | . . . . Melee 106 | . . 44 62 Knockbacks 2 | . . 1 1 Impact 2 | . . 1 1 Kinetic . | . . . . Secondary . | . . . . Self-Inflicted Damage . | . . . . Shots . | . . . . Rammed . | . . . . Targets Rammed . | . . . . Kicked . | . . . . Crushed . | . . . . Highest Temperature 152 | 20 80 . 152 Average Temperature 36 | 12 29 . 60 Received Heat Transfer 591 | 42 . 54 495 Siege Activations . | . . . . Robots Corrupted . | . . . . Combat Hostiles . | . . . . Parts Fried 4 | . . 2 2 Impact Corruptions 4 | . . 1 3 Robots Melted . | . . . . Combat Hostiles . | . . . . Parts Melted . | . . . . Heat Transferred 80 | . . . 80 Parts Sabotaged . | . . . . Parts Stolen . | . . . . Parts Stripped . | . . . . Power Chain Reactions . | . . . . Alert | -11 -10 -10 -8 ------- Run | Yrd Mat Sub Mat Peak Influence 40 | 40 30 . 32 Initial 26 | . 26 . . Average 16 | 18 28 . 7 Maximum Alert Level . | . . . . Low Security (%) 100 | 100 100 . 100 Level 1 . | . . . . Level 2 . | . . . . Level 3 . | . . . . Level 4 . | . . . . Level 5 . | . . . . High Security . | . . . . Max Security . | . . . . Squads Dispatched 1 | . . . 1 Investigation . | . . . . Extermination . | . . . . Reinforcement 1 | . . . 1 Assault . | . . . . Garrison . | . . . . Intercept . | . . . . Searches Triggered . | . . . . Construction Impeded . | . . . . Haulers Reinforced . | . . . . Active Scanning Responses . | . . . . Cargo Convoy Interrupts . | . . . . Stealth | -11 -10 -10 -8 --------- Run | Yrd Mat Sub Mat Distress Signals 1 | . . . 1 Communications Jammed . | . . . . Distress Signals . | . . . . Times Spotted 12 | 1 . 3 8 Peak Tracking Total 6 | 1 . 3 6 Tactical Retreats . | . . . . Traps | -11 -10 -10 -8 ------- Run | Yrd Mat Sub Mat Traps Triggered . | . . . . Indirectly . | . . . . Trap Hack Attempts . | . . . . Triggered . | . . . . Disarmed . | . . . . Reprogrammed . | . . . . Reused . | . . . . Traps Extracted . | . . . . Installed . | . . . . Triggered . | . . . . Machines | -11 -10 -10 -8 ---------- Run | Yrd Mat Sub Mat Machines Disabled . | . . . . Max in Single Turn . | . . . . Machines Repaired . | . . . . Machines Dismantled . | . . . . Machines Sabotaged . | . . . . Overloaded Fab Kills . | . . . . Hacking | -11 -10 -10 -8 --------- Run | Yrd Mat Sub Mat Machines Accessed 1 | . . . 1 Terminals 1 | . . . 1 Fabricators . | . . . . Repair Stations . | . . . . Recycling Units . | . . . . Scanalyzers . | . . . . Garrison Access . | . . . . Total Hacks 1 | . . . 1 Successful . | . . . . Failed 1 | . . . 1 Catastrophic . | . . . . Database Lockouts . | . . . . Manual . | . . . . Terminals 1 | . . . 1 Fabricators . | . . . . Repair Stations . | . . . . Recycling Units . | . . . . Scanalyzers . | . . . . Garrison Access . | . . . . Terminal Hacks . | . . . . Fabricator Hacks . | . . . . Repair Station Hacks . | . . . . Recycling Unit Hacks . | . . . . Scanalyzer . | . . . . Garrison Access Hacks . | . . . . Unauthorized Hacks . | . . . . Terminals . | . . . . Fabricators . | . . . . Repair Stations . | . . . . Recycling Units . | . . . . Scanalyzers . | . . . . Garrison Access . | . . . . Data Cores Recovered . | . . . . Used . | . . . . Hacking Detections . | . . . . Full Trace Events . | . . . . Feedback Events . | . . . . Feedback Blocked . | . . . . Robot Schematics Acquired . | . . . . Robots Built . | . . . . Authchips . | . . . . Time . | . . . . Total Robot Build Rating . | . . . . Part Schematics Acquired . | . . . . Parts Built . | . . . . Authchips . | . . . . Time . | . . . . Total Part Build Rating . | . . . . Parts Repaired . | . . . . Time . | . . . . Parts Recycled . | . . . . Recycled Matter . | . . . . Retrieved Matter . | . . . . Retrieved Components . | . . . . Parts Scanalyzed . | . . . . Part Schematics Acquired . | . . . . Parts Damaged . | . . . . Bothacking | -11 -10 -10 -8 ------------ Run | Yrd Mat Sub Mat Used RIF Installer . | . . . . Robots Hacked . | . . . . Non-combat . | . . . . Combat . | . . . . Robot Hacks Applied . | . . . . Relay Couplers Released . | . . . . Fabnet Peak Effective % . | . . . . Robots Rewired . | . . . . Allies Hacked . | . . . . Hacks Repelled . | . . . . Allies | -11 -10 -10 -8 -------- Run | Yrd Mat Sub Mat Total Allies . | . . . . Largest Group . | . . . . Highest-Rated Group . | . . . . Highest-Rated Ally . | . . . . Total Orders . | . . . . Ally Attacks . | . . . . Total Damage . | . . . . Kills . | . . . . Allies Corrupted . | . . . . Allies Melted . | . . . . Intel | -11 -10 -10 -8 ------- Run | Yrd Mat Sub Mat Robot Analysis Total . | . . . . Derelict Logs Recovered . | . . . . Drone Launches . | . . . . Drone Recoveries . | . . . . Exploration | -11 -10 -10 -8 ------------- Run | Yrd Mat Sub Mat Turns Passed 835 | 140 65 512 118 Spaces Moved 510 | 103 22 349 36 Core 27 | 20 . . 7 Treads . | . . . . Legs 283 | . . 254 29 Wheels 200 | 83 22 95 . Hover . | . . . . Flight . | . . . . Fastest Speed 50 | 50 80 80 140 Average Speed 113 | 74 80 123 153 Slowest Speed 250 | 80 80 140 250 Overloaded Moves . | . . . . Propulsion Burnouts . | . . . . Robots Hopped . | . . . . Cave-ins Triggered . | . . . . Exploration Rate (%) 10 | 7 6 26 4 Regions Visited 3 Branch Regions 1 Pre-discovered Areas 1 | . . 1 . Known Exits Taken . | . . . . Unknown Exits Taken 3 | 1 1 1 . Scrap Searched . | . . . . Spaces Dug 22 | 1 11 3 7 Terrain Destroyed 22 | 1 11 3 7 Melee 10 | . . 3 7 Projectile 12 | 1 11 . . AOE . | . . . . Terrain Rammed . | . . . . Walls Destroyed . | . . . . Machines Disabled . | . . . . Actions | -11 -10 -10 -8 --------- Run | Yrd Mat Sub Mat Total 639 | 144 33 394 68 Wait 24 | 16 . 8 . Move 507 | 102 21 348 36 Hop . | . . . . Pick Up 7 | 3 . 4 . Fast Attach 9 | 7 . 1 1 Attach 1 | . . . 1 Detach . | . . . . Swap 3 | . . 2 1 Drop 4 | . . 3 1 Fire 37 | 16 12 5 4 Melee 47 | . . 23 24 Ram . | . . . . Kick . | . . . . Crush . | . . . . Escape Stasis . | . . . . Rewire . | . . . . Trap . | . . . . Miscellaneous . | . . . . Route ------- -11/Scrapyard -10/Materials -10/Subcaves -8/Materials History --------- Turn | Location | Event 2 | -11/Scrapyard | Met Revision 17 48 | -11/Scrapyard | Discovered new exit (range 8) 141 | -11/Scrapyard | Entered Materials 202 | -10/Materials | Discovered new exit (range 3) 206 | -10/Materials | Entered Subcaves 247 | -10/Subcaves | Learned location of Zion (-7) 247 | -10/Subcaves | Met a Zionite searching for "candidates" 299 | -10/Subcaves | A swath of the cavern ceiling suddenly collapsed 303 | -10/Subcaves | Core integrity fell below 50% 579 | -10/Subcaves | Build established: Scavenger-Mutant 690 | -10/Subcaves | Discovered new exit (range 5) 718 | -10/Subcaves | Entered Materials 718 | -8/Materials | Evolved 4 slots: Utility x4 821 | -8/Materials | Core integrity fell below 50% 833 | -8/Materials | Core integrity fell below 20% 836 | -8/Materials | Destroyed by G-47 Trooper with Particle Gun Last Messages --------------- Enh. Flamer destroyed. Imp. Terrain Scanner destroyed. Y-45 Defender suffers critical hit (Smash). Destroyed Heat Sink. Y-45 Defender system corrupted by crushing effect. Sml. Matter Pod destroyed. Y-45 Defender misfires. Atomic Centrifuge disabled. Y-45 Defender suffers critical hit (Smash). Destroyed Heat Sink. Destroyed Lgt. Armor Plating. Y-45 Defender system corrupted by crushing effect. Y-45 Defender system terminally corrupted. Lgt. Treads fried. Acquired 46 matter. Lgt. Nuclear Core destroyed. Lgt. Ion Engine destroyed. Critical hit (Burn: +37). Mak. Hammer destroyed. Map ----- +----------------------------------------------------+ | | | | | | | | | | | | | | | | | | | | | | | | | | | | | | | | | | | | | | | | | ?????#?????########????################??????????? | | ???????????# #????# g #??????????? | | ???????????# #????## g g * ""???????????? | | ??????????## * ####### gg" """ Y"???????????? | | ???????????# # # # " """ "????????????? | | ???#???????# "T" #######@""" """ ???????????????? | | ???????????# #?????# g u ??????????????? | | ???????????####+###############+###??????????????? | | ???????????# ???????????????? | | ?????????#?# ? ??????????????? | | ???????????# ?? ??????????????? | | ???????????######### #######?+?????#???????????? | | ???????????????#????? #?????????????????????????? | | ?????????????????????? #????????????#????????????? | | ???????????????????????#?????????????????????????? | | ?????????????????????????###?????????????????????? | | ???????????????#???????#?????????????????????????? | | ?????????????????????????????????????????????????? | | ????????????????#???????#????????????????????????? | | ?????????????????????????????????????????????????? | | ?????????????????????????????????????????????????? | | ?????????????????????????????????????????????????? | | ?????????????????????????????????????????????????? | | ?????????????????????????????????????????????????? | | ?????????????????????????????????????????????????? | | ?????????????????????????????????????????????????? | | ?????????????????????????????????????????????????? | | ?????????????????????????????????????????????????? | | ?????????????????????????????????????????????????? | | ?????????????????????????????????????????????????? | +----------------------------------------------------+ Best States ------------- Heat Dissipation 31 Energy Generation 14 Energy Capacity 160 Matter Stores 386 Matter Capacity 550 Sight Range 16 Terrain Scan Range 16 Terrain Scan Density 10 Evasion (%) 55 Item Schematics ----------------- None Robot Schematics ------------------ None Fabricated ------------ Nothing Alien Tech Used ----------------- None Achievements -------------- None Challenges ------------ None Game ------ Seed ElectronSalvageMace Manual? 0 Play Time 00:11:28 Cumulative 2.3 hours Start 2024.03.30 @ 23:36:36 End 2024.03.30 @ 23:46:13 Sessions 1 Manual Loads 0 Difficulty Rogue Special Mode None Game No. 13 Rogue 13 Adventurer 0 Explorer 0 Win Type - Total 0 Types 0/0/0/0/0/0/0/0/0 Lore% 1 Gallery% 10 Achievement% 18 Wizard Run 0 Options --------- Layout 2 ASCII 0 Keyboard 0 Movement Numpad Keybinds 0 Fullscreen 1 Font 48/Terminus++ Map View 55x44 Zoom Use 0% Tactical HUD 0 Map Filters NONE Filters NONE Steam 1 RUN: 689c63f8-2632-4566-9193-53a26381975a